bitfinex/quotes_BTCUSD_20220304
["timestamp","ask_amount","ask_price","bid_price","bid_amount"]
[1646391886580,0.00011053,41740.0,41736.0,0.24431056]
[1646391886780,0.00011053,41740.0,41736.0,0.44264512]
[1646391887181,0.00011053,41740.0,41737.0,0.365381]
[1646391888484,0.0022,41745.0,41737.0,0.365381]
[1646391888882,0.0022,41745.0,41744.0,0.45441875]
[1646391889082,0.0022,41745.0,41744.0,0.81979975]
[1646391890527,0.0022,41745.0,41744.0,0.56683434]
[1646391890728,0.0022,41745.0,41744.0,0.365381]
[1646391891131,0.0022,41746.0,41745.0,0.365381]
[1646391891329,0.0022,41746.0,41745.0,0.665381]
[1646391891528,0.0011,41747.0,41746.0,0.00439999]
[1646391891729,0.0011,41747.0,41746.0,0.66978099]
[1646391898032,0.0011,41747.0,41746.0,0.36978099]
[1646391899330,0.0011,41747.0,41746.0,0.00439999]
[1646391902577,0.0011,41747.0,41742.0,0.43035745]
[1646391902774,0.0011,41747.0,41743.0,0.365381]
[1646391903874,0.0003,41747.0,41743.0,0.365381]
[1646391904275,0.0003,41747.0,41744.0,0.21079161]
[1646391904477,0.0003,41747.0,41745.0,0.43236323]
[1646391904925,0.0003,41747.0,41745.0,0.62616026]
[1646391905427,0.0003,41747.0,41746.0,0.3]
[1646391905627,0.0003,41747.0,41746.0,0.665381]
[1646391906426,0.0003,41747.0,41746.0,0.84999548]
[1646391906629,0.0003,41747.0,41746.0,1.399081]
[1646391906829,0.0003,41747.0,41746.0,1.58369548]
[1646391907429,0.0003,41747.0,41746.0,1.60765548]
[1646391908431,0.00229855,41760.0,41749.0,0.02396]
[1646391908695,0.00229855,41760.0,41751.0,0.02396]
[1646391908888,0.00229855,41760.0,41754.0,0.365381]
[1646391908889,0.00229829,41760.0,41754.0,0.365381]
[1646391909096,0.00229829,41760.0,41757.0,0.75766]
[1646391909290,0.00229829,41760.0,41758.0,0.45916432]
[1646391909492,0.00229829,41760.0,41759.0,1.123041]
[1646391909691,8.29e-06,41760.0,41759.0,0.689341]
[1646391910496,8.29e-06,41760.0,41759.0,0.665381]
[1646391910693,0.0011,41764.0,41760.0,1.099081]
[1646391910891,0.0011,41764.0,41761.0,0.665381]
[1646391911493,0.0011,41764.0,41761.0,0.365381]
[1646391913144,0.00121053,41764.0,41758.0,0.42339909]
[1646391913337,0.00121053,41764.0,41759.0,0.365381]
[1646391913636,0.00121053,41764.0,41760.0,0.21666273]
[1646391913836,0.00121053,41764.0,41759.0,0.665381]
[1646391913837,0.00121053,41764.0,41761.0,0.365381]
[1646391914039,0.00121053,41764.0,41760.0,0.365381]
[1646391914237,0.00121053,41764.0,41758.0,0.42339909]
[1646391914638,0.00121053,41764.0,41759.0,0.665381]
[1646391915242,0.00121053,41764.0,41759.0,0.365381]
[1646391915440,0.00121053,41764.0,41761.0,0.365381]
[1646391915644,0.00121053,41764.0,41759.0,0.06594103]
[1646391916041,0.00121053,41764.0,41760.0,0.365381]
[1646391916278,0.00121053,41764.0,41760.0,0.27978413]
[1646391916680,0.00011053,41761.0,41760.0,0.27978413]
[1646391917082,0.00011053,41761.0,41760.0,0.365381]
[1646391917481,0.00011053,41761.0,41756.0,0.004]
[1646391917681,0.00011053,41761.0,41757.0,0.365381]
[1646391918082,0.0011,41764.0,41757.0,0.52136617]
[1646391918283,0.0011,41764.0,41759.0,0.27457121]
[1646391918482,0.0011,41764.0,41760.0,0.365381]
[1646391919482,0.00011053,41761.0,41760.0,0.365381]
[1646391919928,0.00011053,41761.0,41760.0,0.21283657]
[1646391920631,0.0011,41764.0,41760.0,0.87821757]
[1646391920632,0.00121053,41764.0,41760.0,0.87821757]
[1646391920834,0.00121053,41764.0,41761.0,0.665381]
[1646391921331,0.00121053,41764.0,41761.0,0.3]
[1646391921529,0.0011,41764.0,41761.0,0.665381]
[1646391923132,0.00121053,41764.0,41761.0,0.665381]
[1646391924775,0.00121053,41764.0,41761.0,0.365381]
[1646391924975,0.00121053,41764.0,41757.0,0.15598517]
[1646391925176,0.0011,41764.0,41758.0,0.365381]
[1646391925980,0.0011,41764.0,41752.0,0.1537]
[1646391925981,0.00011053,41761.0,41752.0,0.1537]
[1646391926179,0.00011053,41753.0,41749.0,0.3]
[1646391926377,0.1992,41762.0,41754.0,0.00022105]
[1646391926977,0.0492,41762.0,41754.0,0.00022105]
[1646391929426,0.15,41760.0,41754.0,0.00022105]
[1646391929627,0.15,41757.0,41754.0,0.00022105]
[1646391929827,0.365381,41756.0,41754.0,0.00022105]
[1646391931881,0.059916,41760.0,41754.0,0.00022105]
[1646391932081,0.365381,41759.0,41754.0,0.00022105]
[1646391932481,0.415381,41759.0,41754.0,0.00022105]
[1646391932682,0.365381,41759.0,41754.0,0.00022105]
[1646391933082,0.365381,41758.0,41754.0,0.00022105]
[1646391933282,0.0481,41759.0,41754.0,0.00022105]
[1646391933483,0.270935,41762.0,41758.0,0.28500148]
[1646391933484,0.0011,41762.0,41758.0,0.28500148]
[1646391933684,0.0011,41762.0,41759.0,0.3]
[1646391933885,0.0011,41762.0,41759.0,0.365381]
[1646391934685,0.0011,41762.0,41758.0,0.7511524]
[1646391934925,0.0011,41762.0,41759.0,0.365381]
[1646391935224,0.0011,41762.0,41758.0,0.4511524]
[1646391935424,0.0011,41762.0,41758.0,0.28500148]
[1646391936725,0.0011,41762.0,41759.0,0.07330144]
[1646391937327,0.0011,41762.0,41758.0,0.28500148]
[1646391938330,0.0011,41762.0,41758.0,0.34230067]
[1646391940186,0.0011,41762.0,41758.0,0.28500148]
[1646391940986,0.0011,41762.0,41755.0,0.3]
[1646391941186,0.0011,41762.0,41759.0,0.06862705]
[1646391941585,0.0011,41762.0,41755.0,0.3]
[1646391942544,0.0011,41762.0,41754.0,0.00322105]
[1646391942744,0.059913,41759.0,41754.0,0.00322105]
[1646391942944,0.059913,41759.0,41754.0,0.00022105]
[1646391942945,0.084532,41758.0,41754.0,0.00022105]
[1646391943144,0.29606097,41757.0,41754.0,0.00022105]
[1646391943344,0.413481,41756.0,41754.0,0.00022105]
[1646391943545,0.65947592,41756.0,41754.0,0.00022105]
[1646391943944,0.70954197,41756.0,41754.0,0.00022105]
[1646391944844,0.413481,41756.0,41754.0,0.00022105]
[1646391946383,0.28266471,41755.0,41754.0,0.00022105]
[1646391946580,0.33076471,41755.0,41754.0,0.00022105]
[1646391946781,0.38076471,41755.0,41754.0,0.00022105]
[1646391947680,0.134532,41755.0,41754.0,0.00022105]
[1646391948680,0.58062936,41755.0,41754.0,0.00022105]
[1646391949081,0.234532,41755.0,41754.0,0.00010452]
[1646391949683,0.58062936,41755.0,41754.0,0.00010452]
[1646391949932,0.084532,41755.0,41754.0,0.00010452]
[1646391950130,0.184532,41755.0,41754.0,0.00010452]
[1646391950328,0.234532,41755.0,41754.0,0.00010452]
[1646391950529,0.58062936,41755.0,41754.0,0.00010452]
[1646391950731,0.234532,41755.0,41754.0,0.00010452]
[1646391950928,0.58062936,41755.0,41754.0,0.00010452]
[1646391951128,0.234532,41755.0,41754.0,0.00010452]
[1646391951927,0.53084705,41755.0,41754.0,0.00010452]
[1646391952332,0.234532,41755.0,41754.0,0.00010452]
[1646391952728,0.134532,41755.0,41754.0,0.00010452]
[1646391952928,0.43084245,41755.0,41754.0,0.00010452]
[1646391953329,0.234532,41755.0,41754.0,0.00010452]
[1646391953979,0.53083085,41755.0,41754.0,0.00010452]
[1646391955279,0.234532,41755.0,41754.0,0.00010452]
[1646391955680,0.35622585,41756.0,41754.0,0.00010452]
[1646391955880,0.52589236,41758.0,41754.0,0.00010452]
[1646391955881,0.47609385,41758.0,41754.0,0.00010452]
[1646391956281,0.29629885,41757.0,41754.0,0.00010452]
[1646391956482,0.29629885,41758.0,41754.0,0.00010452]
[1646391956682,0.365381,41757.0,41754.0,0.00010452]
[1646391958635,0.38421185,41759.0,41754.0,0.00010452]
[1646391958636,0.35921185,41759.0,41754.0,0.00010452]
[1646391958933,0.365381,41758.0,41754.0,0.00010452]
[1646391959539,0.02396,41757.0,41745.0,0.3]
[1646391959736,0.036432,41756.0,41745.0,0.05]
[1646391959936,0.059921,41754.0,41746.0,0.3]
[1646391960133,0.083881,41754.0,41743.0,0.29793]
[1646391960335,0.365381,41753.0,41742.0,0.05]
[1646391960535,0.036432,41753.0,41744.0,0.23960299]
[1646391960734,0.036432,41753.0,41743.0,0.3]
[1646391961482,0.036432,41753.0,41743.0,0.2998311]
[1646391962282,0.036432,41753.0,41742.0,0.1821994]
[1646391962982,0.036432,41753.0,41743.0,0.0585308]
[1646391963582,0.036432,41753.0,41742.0,0.1821994]
[1646391963782,0.060392,41753.0,41742.0,0.1821994]
[1646391964180,0.365381,41753.0,41742.0,0.1821994]
[1646391964382,0.365381,41753.0,41746.0,0.23923037]
[1646391965136,0.389341,41753.0,41742.0,0.1821994]
[1646391965334,0.02396,41753.0,41742.0,0.1821994]
[1646391965737,0.365381,41752.0,41742.0,0.1821994]
[1646391966137,0.365381,41753.0,41745.0,0.25593118]
[1646391966337,0.365381,41753.0,41742.0,0.1821994]
[1646391966539,0.059931,41751.0,41742.0,0.1821994]
[1646391966739,0.036432,41750.0,41737.0,0.33456923]
[1646391966941,0.0844643,41750.0,41737.0,0.18456923]
[1646391967138,0.0844643,41750.0,41735.0,0.5079]
[1646391967139,0.02396,41748.0,41735.0,0.5079]
[1646391967341,0.02396,41748.0,41737.0,0.26246372]
[1646391967342,0.413481,41747.0,41737.0,0.26246372]
[1646391968539,0.036363,41744.0,41737.0,0.26246372]
[1646391968779,0.0481,41743.0,41737.0,0.26246372]
[1646391968982,0.365381,41742.0,41737.0,0.26246372]
[1646391969181,0.059939,41745.0,41742.0,0.16208158]
[1646391969381,0.02397765,41743.0,41742.0,0.16208158]
[1646391969582,0.10843765,41743.0,41742.0,0.16208158]
[1646391969782,0.11143765,41743.0,41742.0,0.16208158]
[1646391969981,0.11143765,41743.0,41742.0,0.15708158]
[1646391970885,0.10843765,41743.0,41742.0,0.15708158]
[1646391972737,0.03636,41743.0,41742.0,0.31900259]
[1646391973436,0.03636,41743.0,41742.0,0.30900259]
[1646391974438,0.03636,41743.0,41742.0,0.14708158]
[1646391979088,0.06033277,41743.0,41742.0,0.14708158]
[1646391979689,0.36033277,41743.0,41742.0,0.14708158]
[1646391980330,0.36033277,41743.0,41742.0,0.14208158]
[1646391980731,0.06033277,41743.0,41742.0,0.14208158]
[1646391982831,0.06033277,41743.0,41742.0,0.36483801]
[1646391983032,0.004,41749.0,41742.0,0.36483801]
[1646391983233,0.03636,41748.0,41742.0,0.36483801]
[1646391983434,0.03636,41748.0,41742.0,0.14208158]
[1646391984077,0.059932,41747.0,41742.0,0.14208158]
[1646391984278,0.03636,41746.0,41742.0,0.14208158]
[1646391997428,0.03636,41746.0,41742.0,0.1972132]
[1646391997635,0.03636,41746.0,41744.0,0.27717805]
[1646391998886,0.03636,41746.0,41742.0,0.1972132]
[1646391999090,0.03636,41746.0,41742.0,0.14208158]
[1646391999387,0.0361111,41750.0,41746.0,0.07268046]
[1646391999388,0.3324216,41750.0,41746.0,0.07268046]
[1646391999587,0.02397248,41747.0,41746.0,0.07268046]
[1646391999789,0.02797248,41747.0,41746.0,0.07159638]
[1646392001790,0.02397248,41747.0,41746.0,0.07159638]
[1646392005832,0.2963105,41749.0,41746.0,0.07159638]
[1646392006033,0.02397219,41747.0,41746.0,0.07159638]
[1646392006478,0.32028269,41747.0,41746.0,0.07159638]
[1646392009483,0.02397219,41747.0,41746.0,0.07159638]
[1646392009934,0.32050489,41747.0,41746.0,0.07159638]
[1646392011536,0.02397219,41747.0,41746.0,0.07159638]
[1646392012537,0.32051643,41747.0,41746.0,0.07159638]
[1646392014803,0.02397219,41747.0,41746.0,0.07159638]
[1646392016103,0.66966778,41747.0,41746.0,0.07159638]
[1646392016305,0.32397219,41747.0,41746.0,0.07159638]
[1646392017305,0.75632204,41740.0,41739.0,0.16439689]
[1646392017534,0.75632204,41740.0,41735.0,0.19765525]
[1646392017535,0.78029538,41740.0,41735.0,0.19765525]
[1646392017736,0.75632204,41740.0,41735.0,0.19765525]
[1646392017936,0.75632204,41740.0,41734.0,0.19765525]
[1646392018136,0.75632204,41740.0,41736.0,0.27694261]
[1646392018339,0.02397708,41737.0,41736.0,0.27694261]
[1646392018536,0.02397708,41737.0,41736.0,0.46320134]
[1646392020338,0.02397708,41737.0,41736.0,0.18625873]
[1646392020739,0.02397708,41737.0,41734.0,0.02396]
[1646392020938,0.03588944,41739.0,41734.0,0.02396]
[1646392021184,0.03588944,41739.0,41733.0,0.19765525]
[1646392021587,0.03588944,41739.0,41736.0,0.24880128]
[1646392021785,0.02397765,41737.0,41736.0,0.24880128]
[1646392022588,0.02397765,41737.0,41734.0,0.18403385]
[1646392022786,0.02397765,41735.0,41734.0,0.18403385]
[1646392022985,0.03588944,41739.0,41734.0,0.18403385]
[1646392023685,0.03588944,41739.0,41736.0,0.21956216]
[1646392023884,0.03588944,41739.0,41734.0,0.18403385]
[1646392023885,0.02397765,41737.0,41734.0,0.25287912]
[1646392024100,0.03588944,41739.0,41734.0,0.25287912]
[1646392024687,0.03588944,41739.0,41734.0,0.24787912]
[1646392024930,0.03588944,41739.0,41734.0,0.51592588]
[1646392029280,0.26481807,41740.0,41735.0,0.45]
[1646392030081,0.26481807,41740.0,41734.0,0.51592588]
[1646392032935,0.26481807,41740.0,41737.0,0.20217969]
[1646392033133,0.02397737,41738.0,41737.0,0.20217969]
[1646392033531,0.02397737,41738.0,41734.0,0.71358113]
[1646392033733,0.26481807,41740.0,41734.0,0.71358113]
[1646392034133,0.26481807,41740.0,41735.0,0.02396]
[1646392034735,0.26481807,41740.0,41737.0,0.16232909]
[1646392035634,0.26481807,41740.0,41735.0,0.22161525]
[1646392036678,0.26481807,41740.0,41736.0,0.20632846]
[1646392036879,0.26481807,41740.0,41734.0,0.71358113]
[1646392037379,0.26481807,41740.0,41734.0,0.76358113]
[1646392038381,0.26481807,41740.0,41735.0,0.19765525]
[1646392039933,0.26481807,41740.0,41734.0,0.78754113]
[1646392040334,0.26481807,41740.0,41735.0,0.19647533]
[1646392040536,0.26481807,41740.0,41734.0,0.73754113]
[1646392040735,0.26481807,41740.0,41734.0,0.71358113]
[1646392041936,0.26481807,41740.0,41734.0,0.51592588]
[1646392042435,0.26481807,41740.0,41734.0,0.51561153]
[1646392042635,0.26481807,41740.0,41734.0,0.44676626]
[1646392042936,0.26419296,41740.0,41734.0,0.44676626]
[1646392044284,0.26419296,41740.0,41734.0,0.64442151]
[1646392044985,0.26419296,41740.0,41734.0,0.44676626]
[1646392045585,0.26419296,41740.0,41734.0,0.64442151]
[1646392045789,0.26419296,41740.0,41734.0,0.44676626]
[1646392046188,0.26419296,41740.0,41734.0,0.1787195]
[1646392046587,0.3,41739.0,41732.0,0.19765525]
[1646392046788,0.3,41739.0,41731.0,0.002]
[1646392046789,0.30709286,41738.0,41731.0,0.002]
[1646392046990,0.29523686,41737.0,41731.0,0.002]
[1646392047187,0.29523686,41737.0,41727.0,0.35195525]
[1646392047188,0.24713686,41735.0,41727.0,0.35195525]
[1646392047436,0.24713686,41732.0,41725.0,0.001]
[1646392047638,0.19774808,41728.0,41725.0,0.001]
[1646392048035,0.19774808,41727.0,41725.0,0.001]
[1646392048438,0.059968,41728.0,41725.0,0.001]
[1646392048835,0.359968,41728.0,41725.0,0.001]
[1646392049237,0.55771608,41728.0,41725.0,0.001]
[1646392049437,0.0481,41727.0,41725.0,0.001]
[1646392049636,0.3,41726.0,41725.0,0.001]
[1646392051039,0.3481,41726.0,41725.0,0.001]
[1646392053185,0.00033273,41724.0,41718.0,0.002]
[1646392053383,0.24563586,41723.0,41718.0,0.002]
[1646392053586,0.01399559,41721.0,41718.0,0.002]
[1646392053783,0.06177446,41720.0,41718.0,0.002]
[1646392053983,0.06177446,41720.0,41712.0,0.001]
[1646392053984,0.46499949,41719.0,41712.0,0.001]
[1646392054185,0.15,41715.0,41712.0,0.001]
[1646392054483,0.4981,41715.0,41711.0,0.011]
[1646392054684,0.15,41712.0,41711.0,0.011]
[1646392054933,0.4981,41712.0,41711.0,0.011]
[1646392055238,0.35,41711.0,41710.0,0.0001]
[1646392055435,0.4481,41711.0,41710.0,0.0001]
[1646392055836,0.4481,41711.0,41709.0,0.001]
[1646392056034,0.3,41710.0,41709.0,0.001]
[1646392056238,0.3981,41710.0,41709.0,0.001]
[1646392056634,0.4981,41710.0,41709.0,0.001]
[1646392057837,0.1981,41710.0,41709.0,0.001]
[1646392058240,0.0981,41710.0,41709.0,0.001]
[1646392058888,0.0481,41710.0,41709.0,0.001]
[1646392059385,0.108094,41710.0,41708.0,0.00068054]
[1646392059587,0.0481,41710.0,41708.0,0.00068054]
[1646392059786,0.03564611,41715.0,41709.0,0.23032962]
[1646392059986,0.04064611,41715.0,41709.0,0.23032962]
[1646392060588,0.04064611,41715.0,41710.0,0.21698229]
[1646392060788,0.04064611,41715.0,41714.0,0.0696478]
[1646392061186,0.04064611,41715.0,41714.0,0.24437273]
[1646392061389,0.03564611,41715.0,41714.0,0.24437273]
[1646392061786,0.03564611,41715.0,41714.0,0.0696478]
[1646392062188,0.03564611,41715.0,41710.0,0.21698229]
[1646392062938,0.03564611,41715.0,41712.0,0.365376]
[1646392063237,0.03564611,41715.0,41713.0,0.02396]
[1646392063438,0.03564611,41715.0,41714.0,0.06186647]
[1646392064141,0.00033273,41724.0,41714.0,0.06186647]
[1646392064339,0.00033273,41724.0,41717.0,0.24424916]
[1646392064539,0.00033273,41724.0,41714.0,0.06186647]
[1646392065342,0.00033273,41724.0,41717.0,0.16302022]
[1646392065540,0.00033273,41724.0,41717.0,0.18698022]
[1646392065739,0.00033273,41724.0,41717.0,0.16302022]
[1646392066381,0.00033273,41724.0,41718.0,0.24854645]
[1646392066587,0.00033273,41724.0,41717.0,0.16302022]
[1646392067383,0.00033273,41724.0,41711.0,0.20980378]
[1646392067783,0.00033273,41724.0,41714.0,0.21641022]
[1646392068483,0.00033273,41724.0,41715.0,0.19938703]
[1646392068682,0.00033273,41724.0,41715.0,0.27062988]
[1646392069583,0.059971,41723.0,41715.0,0.27062988]
[1646392070850,0.059971,41723.0,41715.0,0.57062988]
[1646392071052,0.059971,41723.0,41715.0,0.27062988]
[1646392072051,0.059971,41723.0,41719.0,0.26263639]
[1646392072252,0.00133273,41724.0,41722.0,0.16246182]
[1646392072853,0.09197503,41723.0,41722.0,0.16246182]
[1646392074489,0.00033273,41724.0,41722.0,0.16246182]
[1646392074985,0.00033273,41724.0,41716.0,0.3]
[1646392075185,0.00033273,41724.0,41712.0,0.3]
[1646392075785,0.00033273,41724.0,41712.0,0.50749218]
[1646392076286,0.00033273,41724.0,41719.0,0.18435514]
[1646392076986,0.00033273,41724.0,41712.0,0.50749218]
[1646392076987,0.119942,41722.0,41712.0,0.3]
[1646392077439,0.169942,41722.0,41714.0,0.06315544]
[1646392078039,0.169942,41722.0,41715.0,0.44407518]
[1646392079041,0.169942,41722.0,41715.0,0.21540908]
[1646392079844,0.18085026,41722.0,41715.0,0.21540908]
[1646392080845,0.18085026,41722.0,41710.0,0.3]
[1646392081045,0.18085026,41722.0,41709.0,0.153]
[1646392081490,0.01003966,41721.0,41709.0,0.153]
[1646392081688,0.00993443,41721.0,41711.0,0.42165473]
[1646392082690,0.00993443,41721.0,41711.0,0.19429975]
[1646392082890,0.119962,41719.0,41711.0,0.19429975]
[1646392083090,0.05998,41717.0,41711.0,0.19429975]
[1646392083590,0.07468305,41717.0,41711.0,0.19429975]
[1646392083790,0.07468305,41717.0,41711.0,0.53300199]
[1646392083990,0.19464405,41717.0,41711.0,0.53300199]
[1646392084191,0.05,41716.0,41711.0,0.53300199]
[1646392084590,0.02398973,41712.0,41711.0,0.53300199]
[1646392084790,0.05,41716.0,41711.0,0.53300199]
[1646392085340,0.05,41717.0,41712.0,0.3]
[1646392085538,0.05,41717.0,41714.0,0.18305365]
[1646392085740,0.05,41717.0,41712.0,0.3]
[1646392086037,0.05998,41718.0,41712.0,0.3]
[1646392086238,0.05998,41718.0,41711.0,0.53300199]
[1646392086637,0.05998,41718.0,41711.0,0.47044715]
[1646392086838,0.05998,41718.0,41711.0,0.77044715]
[1646392087040,0.05998,41718.0,41708.0,0.00068054]
[1646392087041,0.3,41717.0,41708.0,0.00068054]
[1646392087344,0.07061129,41712.0,41708.0,0.00068054]
[1646392087542,0.04798464,41709.0,41708.0,0.00068054]
[1646392087740,0.09608464,41709.0,41708.0,0.00068054]
[1646392088239,0.0481,41709.0,41708.0,0.00068054]
[1646392088439,0.3481,41709.0,41706.0,0.001]
[1646392088688,0.3481,41709.0,41701.0,0.002]
[1646392088888,0.060005,41707.0,41701.0,0.002]
[1646392089088,0.060006,41705.0,41701.0,0.002]
[1646392089288,0.060006,41705.0,41690.0,0.21409238]
[1646392089289,0.0481,41704.0,41690.0,0.21409238]
[1646392089490,0.00673382,41695.0,41692.0,0.067421]
[1646392089788,0.00673382,41695.0,41693.0,0.0011]
[1646392092942,0.00673382,41695.0,41693.0,0.06861431]
[1646392093443,0.00673382,41695.0,41693.0,0.28419614]
[1646392094243,0.00673382,41695.0,41693.0,0.06861431]
[1646392094443,0.00673382,41695.0,41693.0,0.0011]
[1646392098590,0.00673382,41695.0,41694.0,0.00514929]
[1646392099591,0.00673382,41695.0,41694.0,0.00014929]
[1646392104286,0.00673382,41695.0,41693.0,0.0011]
[1646392105590,0.00673382,41695.0,41694.0,0.22161525]
[1646392105788,0.00673382,41695.0,41694.0,0.37161525]
[1646392105987,0.00673382,41695.0,41694.0,0.17396]
[1646392106387,0.00673382,41695.0,41693.0,0.02506]
[1646392106587,0.00673382,41695.0,41694.0,0.19685398]
[1646392106787,0.00673382,41695.0,41693.0,0.02506]
[1646392106788,0.00673382,41695.0,41693.0,0.22191398]
[1646392107188,0.00673382,41695.0,41693.0,0.02506]
[1646392107637,0.00673382,41695.0,41694.0,0.365376]
[1646392108241,0.00673382,41695.0,41693.0,0.0011]
[1646392109939,0.00673382,41695.0,41694.0,0.365376]
[1646392110339,0.00673382,41695.0,41693.0,0.19795398]
[1646392110541,0.00673382,41695.0,41693.0,0.37191398]
[1646392110940,0.00673382,41695.0,41693.0,0.02506]
[1646392111203,0.00673382,41695.0,41693.0,0.08510634]
[1646392111404,0.00673382,41695.0,41693.0,0.02506]
[1646392112203,0.00673382,41695.0,41693.0,0.0011]
[1646392113610,0.00673382,41695.0,41694.0,0.05584952]
[1646392115341,0.00673382,41695.0,41693.0,0.0011]
[1646392115743,0.00673382,41695.0,41693.0,0.00098755]
[1646392116543,0.00673382,41695.0,41694.0,0.07156152]
[1646392119292,0.00673382,41695.0,41693.0,0.00098755]
[1646392121695,0.05483382,41695.0,41693.0,0.00098755]
[1646392121894,0.01337742,41694.0,41693.0,0.00098755]
[1646392122095,0.0481,41694.0,41693.0,0.00098755]
[1646392125447,0.3481,41694.0,41693.0,0.00098755]
[1646392125747,0.5481,41694.0,41693.0,0.00098755]
[1646392125947,0.668143,41694.0,41693.0,0.00098755]
[1646392130644,0.818143,41694.0,41693.0,0.00098755]
[1646392132647,0.91011803,41694.0,41693.0,0.00098755]
[1646392132846,0.76011803,41694.0,41693.0,0.00098755]
[1646392134800,0.70009603,41694.0,41693.0,0.00098755]
[1646392140347,0.70009603,41694.0,41693.0,0.00087258]
[1646392142393,0.30009603,41694.0,41693.0,0.00087258]
[1646392142992,0.20009603,41694.0,41693.0,0.00087258]
[1646392143894,0.108121,41694.0,41693.0,0.00087258]
[1646392144495,0.208121,41694.0,41693.0,0.00087258]
[1646392146042,0.1,41694.0,41693.0,0.00087258]
[1646392146241,0.05,41694.0,41693.0,0.00087258]
[1646392146442,0.1,41694.0,41693.0,0.00087258]
[1646392146641,0.00673382,41695.0,41693.0,0.00087258]
[1646392146842,0.05,41694.0,41693.0,0.00087258]
[1646392147043,0.00673382,41695.0,41693.0,0.00087258]
[1646392149596,0.00673382,41695.0,41691.0,0.04631453]
[1646392151501,0.00673382,41695.0,41692.0,0.06980819]
[1646392151901,0.00673382,41695.0,41691.0,0.04631453]
[1646392153567,0.00673382,41695.0,41690.0,0.001]
[1646392160752,0.00673382,41695.0,41690.0,0.21072457]
[1646392162552,0.00673382,41695.0,41690.0,0.001]
[1646392168050,1.91920134,41694.0,41690.0,0.001]
[1646392168454,0.3,41693.0,41690.0,0.001]
[1646392169851,0.19753586,41693.0,41690.0,0.001]
[1646392170152,0.49753586,41693.0,41690.0,0.001]
[1646392173509,0.19753586,41692.0,41690.0,0.001]
[1646392173706,0.19753586,41692.0,41690.0,0.00092635]
[1646392173707,0.3,41691.0,41690.0,0.00092635]
[1646392173907,0.3481,41691.0,41690.0,0.00092635]
[1646392174106,0.4481,41691.0,41690.0,0.00092635]
[1646392174509,0.69523686,41691.0,41690.0,0.00092635]
[1646392174708,0.4481,41691.0,41690.0,0.00092635]
[1646392176947,0.64601039,41691.0,41690.0,0.00092635]
[1646392178052,0.4481,41691.0,41690.0,0.00092635]
[1646392178252,0.1,41692.0,41690.0,0.00092635]
[1646392178703,0.20764421,41695.0,41690.0,0.00092635]
[1646392179107,0.19791039,41694.0,41690.0,0.00092635]
[1646392179406,0.20464421,41695.0,41689.0,0.02510503]
[1646392179606,0.20464421,41695.0,41684.0,0.33345398]
[1646392179809,0.45178107,41695.0,41684.0,0.1366]
[1646392180007,0.19791039,41693.0,41684.0,0.1366]
[1646392180208,2.59526007,41690.0,41684.0,0.1366]
[1646392180507,0.05,41690.0,41688.0,0.27450159]
[1646392180705,0.05,41692.0,41688.0,0.27450159]
[1646392180907,0.05,41692.0,41690.0,0.1]
[1646392181307,0.1,41692.0,41690.0,0.1]
[1646392181509,0.05,41692.0,41690.0,0.1]
[1646392181707,0.29791039,41694.0,41690.0,0.1]
[1646392189951,0.24791039,41694.0,41690.0,0.1]
[1646392190151,0.05,41694.0,41690.0,0.1]
[1646392190551,0.25464421,41695.0,41690.0,0.1]
[1646392191156,0.00673382,41695.0,41694.0,0.17456511]
[1646392192150,0.00673382,41695.0,41691.0,0.19685398]
[1646392192352,0.00673382,41695.0,41690.0,0.102]
[1646392193354,0.20464421,41695.0,41690.0,0.102]
[1646392194209,0.54791039,41694.0,41690.0,0.102]
[1646392194405,0.54791039,41694.0,41690.0,0.1]
[1646392194406,0.19791039,41693.0,41690.0,0.1]
[1646392194606,0.19791039,41692.0,41690.0,0.1]
[1646392194806,0.3,41691.0,41690.0,0.1]
[1646392195008,0.35,41691.0,41690.0,0.1]
[1646392196008,0.40603139,41692.0,41690.0,0.1]
[1646392196310,0.24791039,41691.0,41690.0,0.1]
[1646392198249,0.05,41691.0,41690.0,0.1]
[1646392198649,0.34601039,41692.0,41690.0,0.1]
[1646392200252,0.19791039,41691.0,41690.0,0.1]
[1646392200451,0.1481,41692.0,41690.0,0.1]
[1646392200852,0.39523686,41692.0,41690.0,0.1]
[1646392201053,0.24713686,41691.0,41690.0,0.1]
[1646392201301,0.3,41691.0,41690.0,0.1]
[1646392201502,0.3,41691.0,41690.0,0.01019842]
[1646392201701,0.35,41691.0,41690.0,0.01019842]
[1646392202404,0.64637808,41691.0,41690.0,0.01019842]
[1646392202602,0.34980829,41691.0,41690.0,0.01019842]
[1646392203703,0.49790829,41691.0,41690.0,0.01019842]
[1646392204504,0.65633656,41691.0,41690.0,0.00589209]
[1646392204806,0.49790829,41691.0,41690.0,0.00589209]
[1646392205049,1.00205819,41691.0,41690.0,0.00589209]
[1646392205249,0.84360388,41691.0,41690.0,0.00589209]
[1646392205449,1.00205819,41691.0,41690.0,0.00589209]
[1646392205650,0.5,41690.0,41682.0,0.002]
[1646392205850,0.19790554,41684.0,41682.0,0.002]
[1646392206250,0.24790554,41684.0,41682.0,0.002]
[1646392208797,0.28429447,41684.0,41682.0,0.002]
[1646392209198,0.28429447,41684.0,41682.0,0.21402569]
[1646392209199,0.08638893,41684.0,41682.0,0.21402569]
[1646392209600,0.08638893,41684.0,41682.0,0.23452237]
[1646392210200,0.03638893,41684.0,41682.0,0.40533929]
[1646392210603,0.03638893,41684.0,41683.0,0.49927372]
[1646392210799,0.004,41688.0,41683.0,0.49927372]
[1646392211200,0.04065302,41688.0,41682.0,0.40533929]
[1646392211599,0.03665302,41688.0,41682.0,0.40533929]
[1646392212199,0.03665302,41688.0,41683.0,0.19658424]
[1646392212447,0.03665302,41688.0,41682.0,0.23452237]
[1646392215547,0.03665302,41688.0,41683.0,0.19351032]
[1646392215748,0.03665302,41688.0,41682.0,0.23452237]
[1646392217198,0.24890554,41691.0,41687.0,0.06003826]
[1646392217398,0.24890554,41691.0,41684.0,0.18743781]
[1646392217399,0.051,41691.0,41684.0,0.18743781]
[1646392217597,0.05,41691.0,41684.0,0.18743781]
[1646392217798,0.19790554,41691.0,41684.0,0.18743781]
[1646392218197,0.24790554,41691.0,41684.0,0.18743781]